bitfinex-derivatives/quotes_BTCF0:USTF0_20250329
["timestamp","ask_amount","ask_price","bid_price","bid_amount"]
[1743217444095,0.002,83842.0,83841.0,0.4535915]
[1743217445489,0.13993158,83856.0,83846.0,0.0596616]
[1743217445785,0.20995967,83870.0,83862.0,0.1193007]
[1743217445986,0.17689337,83863.0,83862.0,0.1199807]
[1743217446689,0.17689337,83863.0,83862.0,0.1971807]
[1743217446888,0.20995967,83870.0,83869.0,0.1192908]
[1743217447185,0.21087967,83870.0,83869.0,0.1198908]
[1743217447582,0.24907967,83870.0,83869.0,0.1198908]
[1743217447891,0.03912,83870.0,83869.0,0.1198908]
[1743217448088,0.04112,83870.0,83869.0,0.1198908]
[1743217448600,0.04112,83870.0,83869.0,0.1192908]
[1743217448601,0.0402,83870.0,83869.0,0.1192908]
[1743217448890,0.0402,83870.0,83869.0,0.1202908]
[1743217449084,0.0402,83870.0,83869.0,0.1192908]
[1743217449278,0.0402,83870.0,83869.0,0.1212908]
[1743217449681,0.399,83870.0,83869.0,0.1202908]
[1743217449884,0.4378,83870.0,83869.0,0.1222908]
[1743217450283,0.5570893,83870.0,83869.0,0.1222908]
[1743217451280,0.5580893,83870.0,83869.0,0.1212908]
[1743217451489,0.5580893,83870.0,83869.0,0.002]
[1743217451700,0.56576,83870.0,83844.0,0.28471189]
[1743217451993,0.1193249,83845.0,83844.0,0.28471189]
[1743217452190,0.1193249,83845.0,83844.0,0.40403819]
[1743217453180,0.1193249,83845.0,83844.0,0.40503819]
[1743217453392,0.1976649,83845.0,83844.0,0.40563819]
[1743217453892,0.07834,83845.0,83844.0,0.40563819]
[1743217454886,0.07834,83845.0,83844.0,0.40463819]
[1743217456990,0.07834,83845.0,83844.0,0.1199263]
[1743217457294,0.03904,83845.0,83844.0,0.1199263]
[1743217458991,0.03904,83845.0,83844.0,0.13162617]
[1743217459199,0.03904,83845.0,83844.0,0.1199263]
[1743217459900,0.03904,83845.0,83844.0,0.1306563]
[1743217460295,0.00084,83845.0,83844.0,0.4106563]
[1743217460994,0.00084,83845.0,83844.0,0.1306563]
[1743217465298,0.0801,83848.0,83847.0,0.1193221]
[1743217465600,0.08098001,83848.0,83847.0,0.1202021]
[1743217465790,0.00088001,83848.0,83847.0,0.1202021]
[1743217465984,0.0389,83858.0,83850.0,0.0596583]
[1743217466189,0.0389,83858.0,83852.0,0.1193149]
[1743217466395,0.0389,83858.0,83852.0,0.1199149]
[1743217466600,0.0401,83867.0,83866.0,0.119295]
[1743217466795,0.00068,83867.0,83866.0,0.119895]
[1743217467103,0.32924387,83874.0,83873.0,0.1192851]
[1743217467298,0.21059967,83874.0,83873.0,0.1199251]
[1743217467598,0.21059967,83874.0,83873.0,0.1206051]
[1743217467784,0.00064,83874.0,83873.0,0.1199651]
[1743217467990,0.03954,83874.0,83873.0,0.1199651]
[1743217468398,0.04354,83874.0,83873.0,0.1199651]
[1743217468592,0.04354,83874.0,83873.0,0.1592651]
[1743217469103,0.00864,83874.0,83873.0,0.1890651]
[1743217469298,0.1672236,83874.0,83873.0,0.1497651]
[1743217469498,0.04794,83874.0,83873.0,0.1497651]
[1743217470600,0.2078236,83874.0,83873.0,0.1497651]
[1743217470805,0.2038236,83874.0,83873.0,0.1497651]
[1743217470999,0.2058236,83874.0,83873.0,0.1497651]
[1743217471206,0.2038236,83874.0,83873.0,0.1497651]
[1743217471503,0.5646236,83874.0,83873.0,0.1497651]
[1743217473394,0.2038236,83874.0,83873.0,0.1497651]
[1743217473596,0.5646236,83874.0,83873.0,0.1497651]
[1743217474007,0.5626236,83874.0,83873.0,0.1497651]
[1743217474203,0.5646236,83874.0,83873.0,0.1497651]
[1743217474396,0.44534,83874.0,83873.0,0.1497651]
[1743217474596,0.44334,83874.0,83873.0,0.1877651]
[1743217474793,0.40474,83874.0,83873.0,0.1877651]
[1743217475700,0.40274,83874.0,83873.0,0.1877651]
[1743217475904,0.36544,83874.0,83873.0,0.1877651]
[1743217476508,0.36544,83874.0,83873.0,0.19993331]
[1743217476901,0.00464,83874.0,83873.0,0.19993331]
[1743217477102,0.004,83874.0,83873.0,0.19993331]
[1743217477811,0.00017882,83882.0,83881.0,0.1192737]
[1743217478107,0.00017882,83882.0,83881.0,0.2463937]
[1743217478308,0.00077883,83882.0,83881.0,0.2463937]
[1743217478692,0.00077883,83882.0,83881.0,0.3277937]
[1743217478898,0.3608,83888.0,83887.0,0.1192652]
[1743217479101,1e-07,83888.0,83887.0,0.7108252]
[1743217479297,0.0401,83899.0,83898.0,0.1192495]
[1743217479505,0.041,83918.0,83899.0,0.1192481]
[1743217479804,0.101,83900.0,83899.0,0.1614481]
[1743217480000,0.101,83900.0,83899.0,0.21389161]
[1743217480196,0.101,83900.0,83899.0,0.48389161]
[1743217480500,0.0651954,83900.0,83899.0,0.48389161]
[1743217481803,0.0691954,83900.0,83899.0,0.48389161]
[1743217482605,0.0741954,83900.0,83899.0,0.48389161]
[1743217484108,0.0741954,83900.0,83899.0,0.89309161]
[1743217484298,0.0741954,83900.0,83899.0,0.90378161]
[1743217485509,0.0741954,83900.0,83899.0,0.8915381]
[1743217485709,0.0741954,83900.0,83899.0,0.7481381]
[1743217487920,0.1934421,83900.0,83899.0,0.42089]
[1743217488218,0.0752754,83900.0,83899.0,0.5401381]
[1743217488603,0.0741954,83900.0,83899.0,0.5401381]
[1743217488802,0.19448211,83900.0,83899.0,0.01169]
[1743217489008,0.119258,83892.0,83891.0,0.00017882]
[1743217489203,0.11985801,83892.0,83891.0,0.00017882]
[1743217489415,0.48065801,83892.0,83891.0,0.00117882]
[1743217489619,0.1192708,83883.0,83882.0,0.1192718]
[1743217489816,0.1202708,83883.0,83882.0,0.1202718]
[1743217490009,0.001,83883.0,83882.0,0.1202718]
[1743217490208,0.00060001,83883.0,83882.0,0.1202718]
[1743217492712,0.0775,83883.0,83882.0,0.1202718]
[1743217492911,0.07854001,83883.0,83882.0,0.1202718]
[1743217495623,0.0775,83883.0,83882.0,0.1202718]
[1743217496221,0.0785,83883.0,83882.0,0.1202718]
[1743217496422,0.0775,83883.0,83882.0,0.1202718]
[1743217496630,0.07854001,83883.0,83882.0,0.1202718]
[1743217497415,0.0775,83883.0,83882.0,0.1202718]
[1743217499425,0.0775,83883.0,83882.0,0.1500718]
[1743217502522,0.0775,83883.0,83882.0,0.2020718]
[1743217505115,0.00017882,83891.0,83890.0,0.1192609]
[1743217505325,0.00017882,83891.0,83890.0,0.1202609]
[1743217505915,0.00017882,83891.0,83890.0,0.2256609]
[1743217506621,0.00317882,83891.0,83890.0,0.4556609]
[1743217506925,0.00517882,83891.0,83890.0,0.5807409]
[1743217509127,0.00517882,83891.0,83890.0,0.8307409]
[1743217509428,2e-08,83891.0,83890.0,1.2399409]
[1743217509617,2e-08,83891.0,83890.0,0.9899409]
[1743217512521,2e-08,83891.0,83890.0,0.9939409]
[1743217512833,0.10377882,83899.0,83898.0,0.1192495]
[1743217513023,0.10481883,83899.0,83898.0,0.4810895]
[1743217513423,0.10377882,83899.0,83898.0,0.4810895]
[1743217513625,0.01220972,83900.0,83899.0,0.1192481]
[1743217513932,0.01220972,83900.0,83899.0,0.4863881]
[1743217514117,0.01220972,83900.0,83899.0,0.49848029]
[1743217514821,0.00017882,83908.0,83907.0,0.1192367]
[1743217515022,0.00017882,83908.0,83907.0,0.8858367]
[1743217515223,2e-08,83908.0,83907.0,1.1158367]
[1743217515526,0.0544,83921.0,83920.0,0.1192183]
[1743217515727,0.0554,83921.0,83920.0,0.6058983]
[1743217515925,0.05548,83921.0,83920.0,0.6058983]
[1743217516229,0.00108,83921.0,83920.0,0.6058983]
[1743217516426,0.14084563,83922.0,83921.0,0.1192168]
[1743217516726,0.14184563,83922.0,83921.0,0.3802168]
[1743217516936,0.14184563,83922.0,83921.0,0.7410168]
[1743217517121,0.14084563,83922.0,83921.0,0.7410168]
[1743217517323,0.14084563,83928.0,83927.0,0.1192083]
[1743217517523,0.19624563,83928.0,83927.0,0.1202483]
[1743217517732,0.25144563,83928.0,83927.0,0.1202483]
[1743217518123,0.19624563,83928.0,83927.0,0.1202483]
[1743217518920,0.25144563,83928.0,83927.0,0.1202483]
[1743217519121,0.25344563,83928.0,83927.0,0.1202483]
[1743217519325,0.66764563,83928.0,83927.0,0.1202483]
[1743217519533,0.30884563,83928.0,83927.0,0.1202483]
[1743217521233,0.168,83928.0,83927.0,0.1202483]
[1743217526132,0.167,83928.0,83927.0,0.1202483]
[1743217531233,0.1136,83928.0,83927.0,0.1202483]
[1743217531740,0.1136,83928.0,83927.0,0.13552552]
[1743217532743,0.1136,83928.0,83927.0,0.20062552]
[1743217533745,0.1136,83928.0,83927.0,0.1853483]
[1743217534749,0.1136,83928.0,83927.0,0.5461483]
[1743217535060,0.004,83928.0,83927.0,0.5461483]
[1743217536148,0.0703,83928.0,83927.0,0.5461483]
[1743217536858,0.004,83928.0,83927.0,0.5461483]
[1743217537058,0.0663,83937.0,83936.0,0.1191955]
[1743217537256,0.0673,83937.0,83936.0,0.2436355]
[1743217537448,0.0663,83937.0,83936.0,0.2436355]
[1743217537956,0.0663,83937.0,83936.0,0.25547744]
[1743217538254,0.0663,83937.0,83936.0,0.25439744]
[1743217538449,0.0703,83937.0,83936.0,0.25439744]
[1743217538944,0.0743,83937.0,83936.0,0.25439744]
[1743217539359,0.004,83937.0,83936.0,0.25439744]
[1743217539560,0.004,83937.0,83936.0,0.31709744]
[1743217540557,0.0619,83951.0,83950.0,0.1191757]
[1743217541656,0.0619,83951.0,83950.0,0.1489457]
[1743217541846,0.0659,83951.0,83950.0,0.1489457]
[1743217542655,0.0689,83951.0,83950.0,0.1489457]
[1743217542852,0.0699,83951.0,83950.0,0.1499457]
[1743217544452,0.0679,83951.0,83950.0,0.1499457]
[1743217545749,0.0649,83951.0,83950.0,0.1499457]
[1743217545962,0.0669,83951.0,83950.0,0.1499457]
[1743217546358,0.1860742,83951.0,83950.0,0.1499457]
[1743217546557,0.0669,83951.0,83950.0,0.1499457]
[1743217550364,0.0669,83951.0,83950.0,0.16165496]
[1743217552655,0.0669,83951.0,83950.0,0.22605496]
[1743217553455,0.0659,83951.0,83950.0,0.22605496]
[1743217553666,0.0659,83951.0,83950.0,0.2143457]
[1743217554657,0.0659,83951.0,83950.0,0.1499457]
[1743217554866,0.06694001,83951.0,83950.0,0.1499457]
[1743217559169,0.06694001,83951.0,83950.0,0.2135457]
[1743217559362,0.0659,83951.0,83950.0,0.2135457]
[1743217560473,0.06650001,83951.0,83950.0,0.2135457]
[1743217560772,0.0659,83951.0,83950.0,0.2135457]
[1743217561662,0.06694001,83951.0,83950.0,0.2727857]
[1743217561865,0.0659,83951.0,83950.0,0.2727857]
[1743217562171,0.06650001,83951.0,83950.0,0.2727857]
[1743217562367,0.0783878,83951.0,83950.0,0.2727857]
[1743217564568,0.06650001,83951.0,83950.0,0.2727857]
[1743217564767,0.06650001,83951.0,83950.0,0.3383857]
[1743217568168,0.06650001,83951.0,83950.0,0.2727857]
[1743217568369,0.0659,83951.0,83950.0,0.2727857]
[1743217569665,0.0669,83951.0,83950.0,0.2727857]
[1743217569861,0.1357,83951.0,83950.0,0.1499457]
[1743217572664,0.1357,83951.0,83950.0,0.03077]
[1743217572665,0.4048742,83951.0,83950.0,0.03077]
[1743217572974,0.4048742,83951.0,83950.0,0.1489457]
[1743217573274,0.2857,83951.0,83950.0,0.1500257]
[1743217573470,0.1357,83951.0,83950.0,0.1500257]
[1743217573979,0.1357,83951.0,83950.0,0.2167257]
[1743217576170,0.1357,83951.0,83950.0,0.1500257]
[1743217576478,0.27654563,83951.0,83950.0,0.1500257]
[1743217577275,0.39571983,83951.0,83950.0,0.1500257]
[1743217577876,0.27654563,83951.0,83950.0,0.1500257]
[1743217578765,0.39571983,83951.0,83950.0,0.1500257]
[1743217581170,0.2548742,83951.0,83950.0,0.1500257]
[1743217581478,0.6156742,83951.0,83950.0,0.1500257]
[1743217581678,0.1357,83951.0,83950.0,0.1500257]
[1743217581878,0.1357,83951.0,83950.0,0.2176257]
[1743217582070,0.1357,83951.0,83950.0,0.2862257]
[1743217584374,0.1357,83951.0,83950.0,0.29839167]
[1743217584576,0.1357,83951.0,83950.0,0.2862257]
[1743217584881,0.0669,83951.0,83950.0,0.2862257]
[1743217585175,0.1365,83951.0,83950.0,0.2862257]
[1743217585375,0.06694001,83951.0,83950.0,0.1500257]
[1743217586173,0.13654001,83951.0,83950.0,0.1500257]
[1743217586371,0.13654001,83951.0,83950.0,0.2198257]
[1743217591880,0.06694001,83951.0,83950.0,0.6500257]
[1743217592088,0.02096352,83954.0,83953.0,0.1191714]
[1743217592287,0.02236353,83954.0,83953.0,0.92914174]
[1743217592478,2e-08,83954.0,83953.0,1.20914174]
[1743217592786,6e-08,83962.0,83961.0,0.11916]
[1743217592972,7e-08,83962.0,83961.0,1.60849034]
[1743217593175,0.20995967,83970.0,83969.0,0.1191487]
[1743217593376,0.20995967,83970.0,83969.0,1.15020788]
[1743217594077,0.20995967,83970.0,83969.0,1.32519146]
[1743217594283,0.20995967,83970.0,83969.0,1.07519146]
[1743217594583,0.20995967,83970.0,83969.0,0.98447754]
[1743217594882,0.20995967,83970.0,83969.0,0.9964899]
[1743217595079,0.21395967,83970.0,83969.0,0.7564899]
[1743217595880,0.21395967,83970.0,83969.0,0.74447754]
[1743217596077,0.21795967,83970.0,83969.0,0.7566845]
[1743217596271,0.21795967,83970.0,83969.0,0.7864545]
[1743217597588,0.008,83970.0,83969.0,0.7864545]
[1743217599776,0.004,83970.0,83969.0,0.7874545]
[1743217599975,0.004,83970.0,83969.0,0.4266545]
[1743217600174,0.004,83970.0,83969.0,1.1482545]
[1743217600378,0.0645,83980.0,83979.0,0.1191345]
[1743217600682,0.0645,83980.0,83979.0,0.6032145]
[1743217601284,0.0645,83980.0,83979.0,0.7402145]
[1743217601986,0.0665,83980.0,83979.0,0.7402145]
[1743217602872,0.0665,83980.0,83979.0,0.3794145]
[1743217603080,0.0665,83980.0,83979.0,0.6187345]
[1743217603279,0.0665,83980.0,83979.0,0.0018]
[1743217603280,0.1856331,83980.0,83979.0,0.0018]
[1743217603491,0.1856331,83980.0,83979.0,0.1191345]
[1743217603881,0.1191359,83978.0,83977.0,0.0595685]
[1743217604080,0.064,83979.0,83978.0,0.1191359]
[1743217604280,0.064,83979.0,83978.0,0.1209359]
[1743217604488,0.1313,83979.0,83978.0,0.2543359]
[1743217605292,0.2504345,83979.0,83978.0,0.1209359]
[1743217605488,0.1191473,83970.0,83969.0,0.02977]
[1743217605690,0.1191473,83970.0,83961.0,0.00017871]
[1743217605691,0.1191586,83962.0,83961.0,0.11933871]
[1743217605988,0.4807986,83962.0,83961.0,0.12017871]
[1743217606387,0.4807986,83962.0,83961.0,0.11933871]
[1743217606592,0.6128986,83962.0,83961.0,0.11933871]
[1743217606795,0.6128986,83962.0,83961.0,0.12021871]
[1743217607398,0.6128986,83962.0,83961.0,0.12321871]
[1743217607783,0.6128986,83962.0,83961.0,0.12621871]
[1743217608390,0.6128986,83962.0,83961.0,0.00705871]
[1743217608688,0.6128986,83962.0,83961.0,0.00617871]
[1743217609090,0.6128986,83962.0,83961.0,0.00701871]
[1743217610189,0.1191842,83944.0,83943.0,0.0595925]
[1743217610387,0.1191927,83939.0,83938.0,0.1191923]
[1743217610593,0.11979271,83939.0,83938.0,0.2389815]
[1743217612591,0.11979271,83939.0,83938.0,0.2399815]
[1743217612987,0.11979271,83939.0,83938.0,0.2409815]
[1743217616805,0.11979271,83939.0,83938.0,0.0026]
[1743217617093,0.11979271,83939.0,83938.0,0.002]
[1743217617495,0.11979271,83939.0,83938.0,0.1217927]
[1743217618902,0.11979271,83939.0,83938.0,0.002]
[1743217619291,0.11979271,83939.0,83938.0,0.1211927]
[1743217619487,0.11979271,83939.0,83938.0,0.0026]
[1743217619793,0.11979271,83939.0,83938.0,0.1217927]
[1743217622499,0.48059271,83939.0,83938.0,0.1217927]
[1743217624700,0.0595963,83938.0,83910.0,0.00178749]
[1743217624900,0.119231,83912.0,83911.0,0.18799664]
[1743217625092,0.119231,83912.0,83911.0,0.32457664]
[1743217625494,0.00084,83912.0,83911.0,0.44380064]
[1743217625791,0.0649,83918.0,83917.0,0.1192225]
[1743217625989,0.06576098,83918.0,83917.0,0.1198225]
[1743217626192,0.18498208,83918.0,83917.0,0.1198225]
[1743217626598,0.18498208,83918.0,83917.0,0.3211225]
[1743217626996,0.18598208,83918.0,83917.0,0.3261225]
[1743217628200,0.18698208,83918.0,83917.0,0.3281225]
[1743217630904,0.4125,83943.0,83917.0,0.2089]
[1743217631103,0.1957985,83935.0,83934.0,0.1191969]
[1743217631306,0.19639851,83935.0,83934.0,0.1198769]
[1743217631501,0.19639851,83935.0,83934.0,0.1191969]
[1743217631904,0.19639851,83935.0,83934.0,0.1198369]
[1743217632209,0.00060001,83935.0,83934.0,0.1198369]
[1743217632513,0.00060001,83935.0,83934.0,0.1218369]
[1743217633407,0.001,83936.0,83935.0,0.1191969]
[1743217633608,0.10629206,83943.0,83942.0,0.119187]
[1743217633796,0.10697206,83943.0,83942.0,0.601627]
[1743217633995,0.10629206,83943.0,83942.0,0.601627]
[1743217635417,0.10629206,83943.0,83942.0,0.61369715]
[1743217635806,0.0661,83959.0,83958.0,0.1191643]
[1743217636011,0.06670001,83959.0,83958.0,0.1197643]
[1743217637118,0.54766291,83959.0,83958.0,0.0006]
[1743217637313,0.42850001,83959.0,83958.0,0.1197643]
[1743217638313,0.4279,83959.0,83958.0,0.1191643]
[1743217638503,0.4289,83959.0,83958.0,0.1191643]
[1743217639604,0.4279,83959.0,83958.0,0.1191643]
[1743217640814,0.4979,83959.0,83958.0,0.1191643]
[1743217641213,0.4989,83959.0,83958.0,0.1191643]
[1743217642614,0.3628,83959.0,83958.0,0.1191643]
[1743217642820,0.36340001,83959.0,83958.0,0.1874643]
[1743217643212,0.00260001,83959.0,83958.0,0.1874643]
[1743217645018,0.002,83959.0,83958.0,0.1874643]
[1743217645713,0.002,83959.0,83958.0,0.5482643]
[1743217646617,0.10611372,83967.0,83966.0,0.1191529]
[1743217646811,0.07022336,83967.0,83966.0,0.6013529]
[1743217647015,0.06962335,83967.0,83966.0,0.6013529]
[1743217647514,0.06962335,83967.0,83966.0,0.6666529]
[1743217647817,0.134,83979.0,83978.0,0.1191359]
[1743217648117,0.00060001,83979.0,83978.0,0.1197359]
[1743217648509,0.17607112,83984.0,83978.0,0.1197359]
[1743217648510,0.17607112,83984.0,83983.0,0.1191288]
[1743217648716,0.24297113,83984.0,83983.0,0.1197288]
[1743217649626,0.17667113,83984.0,83983.0,0.1197288]
[1743217650017,0.17867113,83984.0,83983.0,0.1197288]
[1743217650727,0.18367113,83984.0,83983.0,0.1197288]
[1743217651022,0.18367113,83984.0,83983.0,0.1866288]
[1743217651023,0.00760001,83984.0,83983.0,0.1866288]
[1743217652617,0.07710001,83984.0,83983.0,0.1866288]
[1743217655114,0.07310001,83984.0,83983.0,0.1866288]
[1743217655315,0.07610001,83984.0,83983.0,0.1866288]
[1743217655723,0.14630001,83984.0,83983.0,0.1866288]
[1743217657817,0.07680001,83984.0,83983.0,0.1866288]
[1743217658123,0.07680001,83984.0,83983.0,0.5474288]
[1743217658124,0.00660001,83984.0,83983.0,0.5474288]
[1743217658319,0.006,83984.0,83983.0,0.5474288]
[1743217658826,0.006,83984.0,83983.0,0.55926556]
[1743217659426,0.004,83984.0,83983.0,0.55926556]
[1743217660737,0.002,83984.0,83983.0,0.55926556]
[1743217662417,0.002,83984.0,83983.0,0.92006556]
[1743217664623,0.002,83984.0,83983.0,0.9082288]
[1743217664822,0.002,83984.0,83983.0,0.6673488]
[1743217665024,0.00260001,83984.0,83983.0,0.6673488]
[1743217667028,0.00260001,83984.0,83983.0,0.5474288]
[1743217667335,0.12172741,83984.0,83983.0,0.0006]
[1743217667518,0.1191302,83982.0,83981.0,0.1191304]
[1743217667828,0.11973021,83982.0,83981.0,0.1197304]
[1743217668030,0.11973021,83982.0,83972.0,0.21386019]
[1743217668031,0.119143,83973.0,83972.0,0.21386019]
[1743217668235,0.479943,83973.0,83972.0,0.10836019]
[1743217668529,0.600703,83973.0,83972.0,0.10836019]
[1743217669124,0.0595741,83970.0,83967.0,0.28471189]
[1743217669330,0.1191501,83968.0,83967.0,0.40446309]
[1743217669532,0.1200701,83968.0,83967.0,0.40446309]
[1743217669737,0.2512701,83968.0,83967.0,0.40446309]
[1743217670235,0.2512701,83968.0,83967.0,0.1197512]
[1743217670426,0.2492701,83968.0,83967.0,0.1191512]
[1743217671133,0.2492701,83968.0,83967.0,0.1201512]
[1743217671329,0.2492701,83968.0,83967.0,0.1211512]
[1743217674529,0.6100701,83968.0,83967.0,0.1211512]
[1743217674924,0.6100701,83968.0,83967.0,0.002]
[1743217676026,0.1191615,83960.0,83959.0,0.11934121]
[1743217676227,0.1200815,83960.0,83959.0,0.00077871]
[1743217676526,0.4808815,83960.0,83959.0,0.00077871]
[1743217676730,0.4808815,83960.0,83959.0,0.00017871]
[1743217676927,0.6180815,83960.0,83959.0,0.00017871]
[1743217677440,0.6180815,83960.0,83959.0,0.12534161]
[1743217677646,0.6180815,83960.0,83959.0,0.12594161]
[1743217678642,0.06802,83960.0,83959.0,0.12594161]
[1743217678841,0.0701,83967.0,83966.0,0.1191529]
[1743217679035,0.13932,83967.0,83966.0,0.1197529]
[1743217679842,0.2584715,83967.0,83966.0,0.1197529]
[1743217680241,0.2584715,83967.0,83966.0,0.1217529]
[1743217681433,0.13932,83967.0,83966.0,0.1217529]
[1743217683535,0.2584715,83967.0,83966.0,0.1217529]
[1743217683737,0.2584715,83967.0,83966.0,0.0026]
[1743217683945,0.3234715,83967.0,83966.0,0.002]
[1743217684649,0.3781515,83967.0,83966.0,0.1211529]
[1743217684943,0.3781515,83967.0,83966.0,0.1218329]
[1743217685646,0.3781515,83967.0,83966.0,0.1899329]
[1743217685835,0.3781515,83967.0,83966.0,0.1218329]
[1743217686847,0.38740715,83967.0,83966.0,0.1218329]
[1743217688745,0.1191615,83960.0,83959.0,0.02994871]
[1743217688941,0.37148623,83960.0,83947.0,0.00892666]
[1743217689142,0.1191941,83937.0,83936.0,0.28471189]
[1743217689348,0.1191941,83937.0,83936.0,0.28531189]
[1743217689349,0.3608,83937.0,83936.0,0.28531189]
[1743217689532,0.3608,83937.0,83936.0,0.40450739]
[1743217689533,0.01327291,83937.0,83936.0,0.40450739]
[1743217689735,0.0653,83940.0,83939.0,0.1191913]
[1743217689939,0.0623,83940.0,83939.0,0.1198713]
[1743217690148,0.5392898,83940.0,83939.0,0.00068]
[1743217690340,0.54040981,83940.0,83939.0,0.00068]
[1743217690642,0.1191941,83937.0,83936.0,0.004]
[1743217690851,0.12644599,83937.0,83936.0,0.004]
[1743217691040,0.1162012,83933.0,83932.0,0.1192]
[1743217691348,0.00116,83933.0,83932.0,0.18978]
[1743217691547,0.1203598,83933.0,83932.0,0.25528]
[1743217691752,0.12039981,83933.0,83932.0,0.25528]
[1743217692441,0.00120001,83933.0,83932.0,0.25528]
[1743217692754,0.0595966,83938.0,83937.0,0.0595966]
[1743217693049,0.0595966,83938.0,83937.0,0.0607966]
[1743217693050,0.17998931,83938.0,83937.0,0.0607966]
[1743217693434,0.17998931,83938.0,83937.0,0.0667]
[1743217693640,0.24758931,83938.0,83937.0,0.1366]
[1743217693955,0.24758931,83938.0,83937.0,0.0022]
[1743217694251,0.25750129,83938.0,83937.0,0.001]
[1743217694452,0.32740129,83938.0,83937.0,0.001]
[1743217694749,0.32740129,83938.0,83937.0,0.1207941]
[1743217695146,0.31748931,83938.0,83937.0,0.0016]
[1743217695348,0.32705997,83938.0,83937.0,0.0659]
[1743217695546,0.32705879,83938.0,83937.0,0.0659]
[1743217695751,0.32705879,83938.0,83937.0,0.1296]
[1743217696049,0.32705879,83938.0,83937.0,0.0653]
[1743217696247,0.32705879,83938.0,83937.0,0.0647]
[1743217697151,0.32705879,83938.0,83937.0,0.001]
[1743217698750,0.31748931,83938.0,83937.0,0.001]
[1743217698947,0.32726418,83938.0,83937.0,0.001]
[1743217699345,0.32726418,83938.0,83937.0,0.0016]
[1743217699551,0.32726418,83938.0,83937.0,0.0671]
[1743217700851,0.32726418,83938.0,83937.0,0.0665]
[1743217701047,0.32726418,83938.0,83937.0,0.0671]
[1743217701247,0.68806418,83938.0,83937.0,0.0671]
[1743217701954,0.68727281,83938.0,83937.0,0.0665]
[1743217702150,0.68727281,83938.0,83937.0,0.0671]
[1743217702455,0.68727281,83938.0,83937.0,0.0677]
[1743217702653,0.68727281,83938.0,83937.0,0.0671]
[1743217703348,0.1191998,83934.0,83933.0,0.0595993]
[1743217703546,0.13009468,83934.0,83933.0,0.0595993]
[1743217703752,0.26539468,83934.0,83933.0,0.0595993]
[1743217703953,0.25561981,83934.0,83933.0,0.0595993]
[1743217704554,0.25561981,83934.0,83933.0,0.0607193]
[1743217704751,0.25561981,83934.0,83933.0,0.1285193]
[1743217706751,0.25561981,83934.0,83933.0,0.06892]
[1743217706958,0.25561981,83934.0,83933.0,0.0678]
[1743217707151,0.25561981,83934.0,83933.0,0.0684]
[1743217709150,0.25561981,83934.0,83933.0,0.1875998]
[1743217709550,0.26510281,83934.0,83933.0,0.1875998]
[1743217709952,0.25561981,83934.0,83933.0,0.1875998]
[1743217710154,0.61641981,83934.0,83933.0,0.1875998]
[1743217713454,0.62585098,83934.0,83933.0,0.1875998]
[1743217713958,0.26505098,83934.0,83933.0,0.1875998]
[1743217714950,0.00112001,83934.0,83933.0,0.1875998]
[1743217715464,0.12031841,83934.0,83933.0,0.1875998]
[1743217716052,0.12031841,83934.0,83933.0,0.0684]
[1743217716259,0.12960085,83934.0,83933.0,0.0684]
[1743217716656,0.19680085,83934.0,83933.0,0.0684]
[1743217717257,0.19680085,83934.0,83933.0,0.1875998]
[1743217718254,0.19680085,83934.0,83933.0,0.0684]
[1743217718656,0.1192012,83932.0,83929.0,9.326e-05]
[1743217718858,0.1192041,83930.0,83929.0,9.326e-05]
[1743217719064,0.1192154,83922.0,83921.0,0.0684]
[1743217719255,0.48929784,83922.0,83921.0,0.0684]
[1743217719558,0.48929784,83922.0,83921.0,0.00064]
[1743217719559,0.49041785,83922.0,83921.0,0.00064]
[1743217719755,0.1192197,83919.0,83918.0,0.0684]
[1743217719956,0.1192268,83914.0,83913.0,0.00017871]
[1743217720266,0.50521339,83914.0,83913.0,0.00017871]
[1743217720763,0.50430665,83914.0,83913.0,0.00017871]
[1743217720952,0.52312053,83914.0,83913.0,0.00017871]
[1743217721158,0.52385166,83914.0,83913.0,0.11940691]
[1743217721657,0.52485166,83914.0,83913.0,0.11940691]
[1743217722767,0.52485166,83914.0,83913.0,0.00017871]
[1743217722972,0.52385166,83914.0,83913.0,0.00017871]
[1743217723563,0.5267584,83914.0,83913.0,0.00017871]
[1743217724366,0.5277584,83914.0,83913.0,0.00017871]
[1743217724662,0.52887841,83914.0,83913.0,0.00077871]
[1743217725063,0.52896216,83914.0,83913.0,0.00077871]
[1743217725370,0.52887841,83914.0,83913.0,0.00077871]
[1743217725563,0.52887841,83914.0,83913.0,0.00017871]
[1743217726965,0.52959067,83914.0,83913.0,0.00017871]
[1743217727166,0.16879067,83914.0,83913.0,0.00017871]
[1743217727368,0.89039067,83914.0,83913.0,0.00017871]
[1743217728868,0.86376069,83914.0,83913.0,0.00017871]
[1743217729173,0.89042689,83914.0,83913.0,0.00017871]
[1743217729472,0.89033363,83914.0,83913.0,0.00017871]
[1743217730168,0.1192367,83907.0,83889.0,0.4204306]
[1743217730370,0.1192467,83900.0,83899.0,0.0683]
[1743217730670,0.13068773,83900.0,83899.0,0.0689]
[1743217730866,0.00120621,83900.0,83899.0,0.1881481]
[1743217731071,0.00120621,83900.0,83899.0,0.6153481]
[1743217731271,8.62e-05,83900.0,83899.0,0.6153481]
[1743217732266,0.1193329,83900.0,83899.0,0.6153481]
[1743217733264,0.12045291,83900.0,83899.0,0.6153481]
[1743217734972,0.1306402,83900.0,83899.0,0.6153481]
[1743217735377,0.00120621,83900.0,83899.0,0.6153481]
[1743217735676,8.62e-05,83900.0,83899.0,0.6153481]
[1743217736279,0.1193329,83900.0,83899.0,0.6153481]
[1743217736581,0.1204929,83900.0,83899.0,0.6153481]
[1743217737700,0.1204929,83900.0,83899.0,0.2545481]
[1743217737875,0.1306987,83900.0,83899.0,0.1353]
[1743217738180,0.1306987,83900.0,83899.0,0.0689]
[1743217738375,0.57691511,83900.0,83899.0,0.0006]
[1743217738563,0.57691511,83900.0,83878.0,0.4204383]
[1743217738564,0.119258,83892.0,83874.0,0.2854016]
[1743217738767,0.4800751,83880.0,83879.0,0.01201]
[1743217738969,0.1192936,83867.0,83860.0,0.0685]
[1743217739175,0.62931365,83867.0,83866.0,0.35467641]
[1743217739378,0.63059365,83867.0,83866.0,0.35467641]
[1743217739587,0.64256296,83867.0,83866.0,0.35467641]
[1743217739975,0.71638317,83867.0,83866.0,0.35467641]
[1743217741074,0.71647643,83867.0,83866.0,0.35467641]
[1743217741271,0.71638317,83867.0,83866.0,0.35467641]
[1743217741675,0.59467643,83867.0,83866.0,0.35467641]
[1743217741879,0.71766317,83867.0,83866.0,0.35467641]
[1743217742278,0.71024296,83867.0,83866.0,0.35467641]